[Event "Israel-ch Disabled 2024"]
[Site "Haifa"]
[Date "2024.05.23"]
[Round "1.1"]
[White "Oliel, Yehonatan"]
[Black "Gruenfeld, Yehuda"]
[Result "0-1"]
[ECO "B23"]
[WhiteElo "1736"]
[BlackElo "2405"]
[Annotator "TA"]
[PlyCount "62"]
[EventDate "2024.05.20"]
[EventType "swiss"]
[EventCountry "ISR"]
[SourceTitle "playchess.com"]
[Source "ChessBase"]
[SourceQuality "1"]
[TimeControl "1200+10"]

{[%evp 11,62,0,0,-12,33,-3,26,0,14,0,-3,0,0,-105,22,28,17,4,43,-48,0,0,53,-30,-28,-38,-44,-45,-37,-52,-21,-20,-10,-8,-12,-11,15,-239,-229,-336,-341,-401,-337,-336,-332,-416,-392,-395,-396,-414,-380,-504,-506]} 1. e4 {[%emt 0:00:07]} c5 {[%emt 0:00:02]} 2. Nc3 {[%emt 0:00:10]} e6 {[%emt 0:00:08]} 3. f4 {[%emt 0:00:21]} Nc6 {[%emt 0:00:50]} 4. Nf3 {[%emt 0:00:25]} d6 {[%emt 0:00:03]} 5. Bb5 {[%emt 0:00:36]} Bd7 {[%emt 0:00:22]} 6. O-O {[%emt 0:00:26]} Be7 {[%emt 0:00:11]} 7. Qe1 {[%emt 0:01:24]} Nd4 {[%emt 0:01:18]} 8. Bd3 {[%emt 0:01:28]} Qb6 {[%emt 0:04:51]} 9. Kh1 {[%emt 0:01:34] White has an edge.} Nf6 {[%emt 0:01:18][%cal Oc5c4]} 10. Nxd4 {[%emt 0:01:28]} cxd4 {[%emt 0:00:02]} 11. Ne2 {[%emt 0:01:05]} Bc6 {[%emt 0:00:41]} 12. Ng3 {[%emt 0:00:35] [#]} (12. Ng1 $11) 12... Bb5 {[%emt 0:00:28] Black is more active.} (12... h5 $1 $17 {[%cal Rh5h4] Threatens to win with ...h4.} 13. Kg1 a5) 13. Bxb5+ $11 {[%emt 0:01:00]} Qxb5 {[%emt 0:00:01]} 14. d3 {[%emt 0:00:29]} Rc8 {[%emt 0:00:24]} 15. Qf2 {[%emt 0:01:51]} (15. Ne2 $14) 15... Qc5 {[%emt 0:00:52]} (15... h5 $15 {should be considered.}) 16. Bd2 {[%emt 0:01:30]} h5 {[%emt 0:00:45]} (16... O-O $11) 17. c3 {[%emt 0:00:44]} (17. h3 $14) 17... dxc3 {[%emt 0:00:51]} 18. Qxc5 {[%emt 0:00:36]} dxc5 {[%emt 0:00:09]} 19. Bxc3 {[%emt 0:00:15]} h4 {[%emt 0:00:13]} 20. Ne2 {[%emt 0:00:41]} h3 {[%emt 0:00:01]} 21. g3 {[%emt 0:00:29]} c4 {[%emt 0:00:26]} 22. Bxf6 {[%emt 0:01:09]} Bxf6 {[%emt 0:00:18]} 23. d4 {[%emt 0:00:21]} O-O {[%emt 0:01:14]} 24. Nc3 $2 {[%emt 0:00:16][%mdl 8192] [#] Loses the game.} (24. g4 $11 {and White has nothing to worry.}) 24... Bxd4 $19 {[%emt 0:00:04]} 25. Rad1 {[%emt 0:00:42]} (25. Rac1 {was necessary.}) 25... Rfd8 {[%emt 0:00:20]} 26. g4 {[%emt 0:00:57]} Bxc3 {[%emt 0:00:09]} 27. bxc3 {[%emt 0:00:06]} Rd3 {[%emt 0:00:02]} 28. Rb1 {[%emt 0:00:40]} b6 {[%emt 0:00:06]} 29. Rbc1 {[%emt 0:00:52]} Rcd8 {[%emt 0:00:09]} 30. a4 {[%emt 0:00:12]} Re3 {[%emt 0:00:32]} 31. e5 {[%emt 0:00:24]} Rd2 {[%emt 0:00:05] Weighted Error Value: White=0.50/Black=0.31.  Loses game:     	White=1     	---        Mistake:       	White=4     	Black=3      Inaccurate:     	White=3     	Black=5      OK:         	White=9     	Black=7      Best:        	White=1     	Black=1} 0-1

[Event "Israel-ch Disabled 2024"]
[Site "Haifa"]
[Date "2024.05.23"]
[Round "1.2"]
[White "Gurbanov, Andrei"]
[Black "Vardy, Afik"]
[Result "1-0"]
[ECO "D36"]
[WhiteElo "2296"]
[BlackElo "1702"]
[Annotator "RC"]
[PlyCount "79"]
[EventDate "2024.05.20"]
[EventType "swiss"]
[EventCountry "ISR"]
[SourceTitle "playchess.com"]
[Source "ChessBase"]
[SourceQuality "1"]
[TimeControl "1200+10"]

1. d4 {[%emt 0:00:04]} d5 {[%emt 0:00:02]} 2. c4 {[%emt 0:00:02]} c6 {[%emt 0:00:02]} 3. Nf3 {[%emt 0:00:02]} e6 {[%emt 0:00:02]} 4. cxd5 {[%emt 0:00:05]} exd5 {[%emt 0:00:04]} 5. Nc3 {[%emt 0:00:02]} Nf6 {[%emt 0:00:03]} 6. Bg5 {[%emt 0:00:03]} Be7 {[%emt 0:00:08]} 7. Qc2 {[%emt 0:00:02]} Bg4 {[%emt 0:00:22]} 8. Ne5 {[%emt 0:00:42]} Bh5 {[%emt 0:00:09]} 9. f4 {[%emt 0:00:11]} Bg6 {[%emt 0:00:30]} 10. f5 {[%emt 0:00:13]} Bh5 {[%emt 0:00:17]} 11. e3 {[%emt 0:01:08]} Ne4 {[%emt 0:05:08]} 12. Bxe7 {[%emt 0:01:49]} Qxe7 {[%emt 0:00:03]} 13. Nxe4 {[%emt 0:04:54]} dxe4 {[%emt 0:00:06]} 14. g4 {[%emt 0:00:39]} f6 {[%emt 0:00:03]} 15. gxh5 {[%emt 0:00:13]} fxe5 {[%emt 0:00:05]} 16. O-O-O {[%emt 0:00:11]} Qh4 {[%emt 0:01:59]} 17. dxe5 {[%emt 0:01:11]} Rf8 {[%emt 0:00:21]} 18. Qc4 {[%emt 0:00:14]} Nd7 {[%emt 0:00:56]} 19. Qe6+ {[%emt 0:00:12]} Qe7 {[%emt 0:00:02]} 20. Rxd7 {[%emt 0:00:10]} Qxe6 {[%emt 0:00:02]} 21. fxe6 {[%emt 0:00:02]} Rf5 {[%emt 0:00:27]} 22. Rxb7 {[%emt 0:11:41]} Rxe5 {[%emt 0:00:25]} 23. Rxg7 {[%emt 0:00:00]} O-O-O {[%emt 0:00:15]} 24. Bc4 {[%emt 0:00:00]} Rxh5 {[%emt 0:00:25]} 25. e7 {[%emt 0:00:00]} Re8 {[%emt 0:00:06]} 26. Rf1 {[%emt 0:00:00]} Rh6 {[%emt 0:01:11]} 27. Rf4 {[%emt 0:00:00]} Kd7 {[%emt 0:00:26]} 28. Rxe4 {[%emt 0:00:00]} Rxh2 {[%emt 0:00:05]} 29. Rd4+ {[%emt 0:00:00]} Kc8 {[%emt 0:03:22]} 30. Be6+ {[%emt 0:00:00]} Kc7 {[%emt 0:00:01]} 31. Rd7+ {[%emt 0:00:00]} Kb6 {[%emt 0:00:26]} 32. Rd8 {[%emt 0:00:00]} Rh1+ {[%emt 0:00:54]} 33. Kc2 {[%emt 0:00:00]} Rxe7 {[%emt 0:00:22]} 34. Rxe7 {[%emt 0:00:00]} Kc5 {[%emt 0:00:08]} 35. Rxa7 {[%emt 0:00:00]} Rh2+ {[%emt 0:00:05]} 36. Rd2 {[%emt 0:00:00]} Rh6 {[%emt 0:00:07]} 37. Rb7 {[%emt 0:02:30]} Rh4 {[%emt 0:00:39]} 38. a3 {[%emt 0:00:00]} Rd4 {[%emt 0:00:54]} 39. Rxd4 {[%emt 0:00:00]} h5 {[%emt 0:00:02]} 40. b4# {[%emt 0:00:30]} 1-0

[Event "Israel-ch Disabled 2024"]
[Site "Haifa"]
[Date "2024.05.23"]
[Round "1.3"]
[White "Zilberman, Yaacov"]
[Black "Volodarsky, Michael"]
[Result "1-0"]
[ECO "D35"]
[WhiteElo "2299"]
[BlackElo "1648"]
[Annotator "RC"]
[PlyCount "63"]
[EventDate "2024.05.20"]
[EventType "swiss"]
[EventCountry "ISR"]
[SourceTitle "playchess.com"]
[Source "ChessBase"]
[SourceQuality "1"]
[TimeControl "1200+10"]

1. d4 {[%emt 0:00:04]} d5 {[%emt 0:00:02]} 2. c4 {[%emt 0:00:02]} e6 {[%emt 0:00:01]} 3. Nc3 {[%emt 0:00:03]} Nf6 {[%emt 0:00:02]} 4. cxd5 {[%emt 0:00:04]} exd5 {[%emt 0:00:06]} 5. Bg5 {[%emt 0:00:03]} Be7 {[%emt 0:00:11]} 6. e3 {[%emt 0:00:04]} h6 {[%emt 0:00:04]} 7. Bh4 {[%emt 0:00:08]} O-O {[%emt 0:00:10]} 8. Bd3 {[%emt 0:00:05]} Be6 {[%emt 0:00:28]} 9. Nf3 {[%emt 0:00:05]} Nbd7 {[%emt 0:00:03]} 10. O-O {[%emt 0:00:08]} c5 {[%emt 0:00:06]} 11. dxc5 {[%emt 0:00:14]} Nxc5 {[%emt 0:00:08]} 12. Bc2 {[%emt 0:00:06]} Rc8 {[%emt 0:00:16]} 13. Nd4 {[%emt 0:00:18]} Bg4 {[%emt 0:00:30]} 14. Qd2 {[%emt 0:00:32]} Nce4 {[%emt 0:00:21]} 15. Nxe4 {[%emt 0:00:04]} Nxe4 {[%emt 0:00:31]} 16. Bxe4 {[%emt 0:00:05]} dxe4 {[%emt 0:00:38]} 17. Bxe7 {[%emt 0:00:14]} Qxe7 {[%emt 0:00:05]} 18. Rac1 {[%emt 0:00:13]} Rxc1 {[%emt 0:00:26]} 19. Rxc1 {[%emt 0:00:02]} Rd8 {[%emt 0:00:05]} 20. Qa5 {[%emt 0:00:36]} Rd6 {[%emt 0:02:50]} 21. Qxa7 {[%emt 0:00:37]} Ra6 {[%emt 0:01:16]} 22. Qb8+ {[%emt 0:00:04]} Kh7 {[%emt 0:00:08]} 23. a3 {[%emt 0:00:14]} Qh4 {[%emt 0:00:06]} 24. Qxb7 {[%emt 0:00:30]} Rf6 {[%emt 0:00:13]} 25. Qxe4+ {[%emt 0:00:12]} g6 {[%emt 0:00:09]} 26. f3 {[%emt 0:01:37]} h5 {[%emt 0:01:02]} 27. h3 {[%emt 0:00:09]} Qg5 {[%emt 0:01:20]} 28. hxg4 {[%emt 0:00:22]} hxg4 {[%emt 0:00:05]} 29. fxg4 {[%emt 0:02:25]} Qh4 {[%emt 0:00:17]} 30. Nf3 {[%emt 0:01:05]} Qg3 {[%emt 0:01:01]} 31. g5 {[%emt 0:00:28]} Re6 {[%emt 0:00:45]} 32. Qf4 {[%emt 0:00:15]} 1-0

[Event "Israel-ch Disabled 2024"]
[Site "Haifa"]
[Date "2024.05.23"]
[Round "1.5"]
[White "Rozhanski, Yosef"]
[Black "Dayan, Itay"]
[Result "1-0"]
[ECO "D77"]
[WhiteElo "2127"]
[BlackElo "1568"]
[Annotator "RC"]
[PlyCount "62"]
[EventDate "2024.05.20"]
[EventType "swiss"]
[EventCountry "ISR"]
[SourceTitle "playchess.com"]
[Source "ChessBase"]
[SourceQuality "1"]
[TimeControl "1200+10"]

1. d4 {[%emt 0:00:04]} Nf6 {[%emt 0:00:01]} 2. Nf3 {[%emt 0:00:02]} g6 {[%emt 0:00:02]} 3. g3 {[%emt 0:00:02]} Bg7 {[%emt 0:00:01]} 4. Bg2 {[%emt 0:00:02]} O-O {[%emt 0:00:02]} 5. O-O {[%emt 0:00:02]} d5 {[%emt 0:00:16]} 6. c4 {[%emt 0:00:02]} dxc4 {[%emt 0:20:48]} 7. Na3 {[%emt 0:21:06]} Be6 {[%emt 0:00:00]} 8. Ne5 {[%emt 0:00:00]} Nc6 {[%emt 0:00:00]} 9. Nxc6 {[%emt 0:00:00]} bxc6 {[%emt 0:00:00]} 10. Bxc6 {[%emt 0:00:00]} Bh3 {[%emt 0:00:00]} 11. Re1 {[%emt 0:00:00]} Rb8 {[%emt 0:00:00]} 12. Nxc4 {[%emt 0:00:00]} Rb4 {[%emt 0:00:00]} 13. b3 {[%emt 0:00:00]} Ng4 {[%emt 0:00:00]} 14. Bb2 {[%emt 0:00:00]} Qb8 {[%emt 0:00:00]} 15. Bc3 {[%emt 0:00:00]} Rd8 {[%emt 0:00:00]} 16. e3 {[%emt 0:00:00]} e5 {[%emt 0:00:00]} 17. Bxb4 {[%emt 0:00:00]} exd4 {[%emt 0:00:00]} 18. e4 {[%emt 0:00:00]} d3 {[%emt 0:00:00]} 19. Qd2 {[%emt 0:00:00]} Bd4 {[%emt 0:00:00]} 20. Rf1 {[%emt 0:00:00]} Nxf2 {[%emt 0:00:00]} 21. Rxf2 {[%emt 0:00:00]} Bxa1 {[%emt 0:00:00]} 22. Bc3 {[%emt 0:00:00]} Bxc3 {[%emt 0:00:00]} 23. Qxc3 {[%emt 0:00:00]} Be6 {[%emt 0:00:00]} 24. Qd2 {[%emt 0:00:12]} Bxc4 {[%emt 0:00:00]} 25. bxc4 {[%emt 0:00:03]} Qb1+ {[%emt 0:00:00]} 26. Kg2 {[%emt 0:00:06]} Rd4 {[%emt 0:00:00]} 27. Qf4 {[%emt 0:00:33]} f5 {[%emt 0:00:00]} 28. Qe5 {[%emt 0:00:14]} d2 {[%emt 0:00:58]} 29. Bd5+ {[%emt 0:00:05]} Kf8 {[%emt 0:00:28]} 30. Qf6+ {[%emt 0:00:03]} Ke8 {[%emt 0:00:09]} 31. Bc6+ {[%emt 0:00:02]} Rd7 {[%emt 0:00:18]} 1-0

[Event "Israel-ch Disabled 2024"]
[Site "Haifa"]
[Date "2024.05.23"]
[Round "2.1"]
[White "Gruenfeld, Yehuda"]
[Black "Akman, Adi"]
[Result "1-0"]
[ECO "C63"]
[WhiteElo "2405"]
[BlackElo "2025"]
[Annotator "TA"]
[PlyCount "70"]
[EventDate "2024.05.20"]
[EventType "swiss"]
[EventCountry "ISR"]
[SourceTitle "playchess.com"]
[Source "ChessBase"]
[SourceQuality "1"]
[TimeControl "1200+10"]

{[%evp 26,70,32,0,21,10,14,4,44,20,30,19,72,6,12,7,27,0,127,126,593,162,475,208,195,201,278,189,181,194,177,133,638,480,509,504,812,597,1639,1252,4810,1952,29969,29970,29964,29954,29994]} 1. e4 {[%emt 0:00:03]} e5 {[%emt 0:00:01]} 2. Nf3 {[%emt 0:00:02]} Nc6 {[%emt 0:00:01]} 3. Bb5 {[%emt 0:00:02]} f5 {[%emt 0:00:02]} 4. Nc3 {[%emt 0:00:16]} fxe4 {[%emt 0:00:01]} 5. Nxe4 {[%emt 0:00:01]} d5 {[%emt 0:00:02]} 6. Nxe5 {[%emt 0:01:40]} dxe4 {[%emt 0:00:01]} 7. Nxc6 {[%emt 0:00:04]} Qg5 {[%emt 0:00:03]} 8. Qe2 {[%emt 0:01:33]} Nf6 {[%emt 0:00:02]} 9. Ne5+ {[%emt 0:00:32]} c6 {[%emt 0:00:12]} 10. f4 {[%emt 0:00:03]} Qxf4 {[%emt 0:00:09]} 11. d4 {[%emt 0:00:02]} Qh4+ {[%emt 0:00:03]} 12. g3 {[%emt 0:00:02]} Qh3 {[%emt 0:00:01]} 13. Bc4 {[%emt 0:00:01]} Be6 {[%emt 0:00:04]} 14. Bf4 {[%emt 0:00:27][%cal Od4d5]} O-O-O {[%emt 0:00:09]} 15. O-O-O {[%emt 0:00:06][%cal Og3g4]} Bd6 $1 {[%emt 0:00:14]} 16. Kb1 {[%emt 0:00:22][%cal Og3g4]} Rde8 {[%emt 0:00:34] The position is equal.} 17. Rhf1 {[%emt 0:00:53][%cal Og3g4]} Rhf8 {[%emt 0:00:13]} 18. a3 {[%emt 0:00:12]} Bxc4 {[%emt 0:00:38]} (18... Nd5 $11 {remains equal.}) 19. Qxc4 {[%emt 0:00:11]} (19. Nxc4 $16 Bxf4 20. Rxf4) 19... Qe6 $11 {[%emt 0:00:15]} 20. Qa4 {[%emt 0:01:11]} (20. Qxe6+ {simplifies} Rxe6 21. Nc4 Be7 22. Be5) 20... Kb8 {[%emt 0:01:09]} 21. Rfe1 {[%emt 0:00:03]} Nd5 {[%emt 0:00:43]} (21... Bc7 $11) 22. Rxe4 $16 {[%emt 0:00:21]} Nxf4 $4 {[%emt 0:00:14][%mdl 8192] [#]} (22... Bc7 $16 23. Rde1 Qc8) 23. gxf4 $2 {[%emt 0:00:10]} (23. Nxc6+ bxc6 24. Rxe6 Nxe6 25. Qxc6) 23... Qh3 $2 {[%emt 0:00:27]} (23... Qd5 {is more resistant.} 24. Rde1 Rd8) 24. d5 {[%emt 0:03:33]} (24. Nxc6+ $142 bxc6 25. Qxc6 Rxe4 26. Qxd6+ Kb7 27. Qd5+ (27. Qxf8 Qd7 $18) 27... Kb8 28. Qxe4) 24... Bxe5 $18 {[%emt 0:00:29]} 25. fxe5 {[%emt 0:00:03]} Rf1 {[%emt 0:00:26]} 26. Rxf1 {[%emt 0:00:05]} Qxf1+ {[%emt 0:00:01][%mdl 4096] Endgame. KQR-KQR} 27. Ka2 {[%emt 0:00:01] Strongly threatening d6.} Qf5 {[%emt 0:03:51]} 28. Qd4 {[%emt 0:00:09]} Rd8 $2 {[%emt 0:00:29][%mdl 8192] A mistake that costs the game.} (28... cxd5 $16 29. Qxd5 Qe6) 29. d6 {[%emt 0:00:15] [#] aiming for e6.} Qe6+ {[%emt 0:00:11]} 30. b3 {[%emt 0:00:02]} Rd7 {[%emt 0:00:23]} (30... h6 $142 31. a4 Rg8) 31. Rf4 {[%emt 0:00:10] Threatening mate with Rf8+.} b6 {[%emt 0:00:06]} 32. Qe4 {[%emt 0:01:01]} Kb7 {[%emt 0:00:17]} 33. Qf5 {[%emt 0:00:02]} ({Not} 33. Qxh7 Qxe5 34. Rg4 b5 $16) 33... Qe8 {[%emt 0:00:41]} 34. e6 {[%emt 0:00:04]} ({Less strong is} 34. Qxh7 Qxe5 35. Rg4 b5 $16) 34... Rxd6 {[%emt 0:00:21]} 35. Qf7+ {[%emt 0:00:01]} (35. Qxh7 Qxe6 36. Qxg7+ Rd7 $16) 35... Kc8 {[%emt 0:00:00] Weighted Error Value: White=0.85/Black=1.16.  Loses game:     	---       	Black=2      Mistake:       	White=3     	Black=4      Inaccurate:     	White=2     	Black=4      OK:         	White=1     	Black=2      Best:        	White=2     	Black=3      Strong:       	---       	Black=1} 1-0

[Event "Israel-ch Disabled 2024"]
[Site "Haifa"]
[Date "2024.05.23"]
[Round "2.2"]
[White "Shabtai, Ran"]
[Black "Gurbanov, Andrei"]
[Result "1-0"]
[ECO "C54"]
[WhiteElo "2046"]
[BlackElo "2296"]
[Annotator "RC"]
[PlyCount "77"]
[EventDate "2024.05.20"]
[EventType "swiss"]
[EventCountry "ISR"]
[SourceTitle "playchess.com"]
[Source "ChessBase"]
[SourceQuality "1"]
[TimeControl "1200+10"]

1. e4 {[%emt 0:00:14]} e5 {[%emt 0:00:01]} 2. Nf3 {[%emt 0:00:13]} Nc6 {[%emt 0:00:02]} 3. Bc4 {[%emt 0:00:20]} Bc5 {[%emt 0:00:24]} 4. c3 {[%emt 0:00:11]} Nf6 {[%emt 0:00:03]} 5. d3 {[%emt 0:00:03]} d6 {[%emt 0:00:04]} 6. a4 {[%emt 0:00:12]} a6 {[%emt 0:00:03]} 7. b4 {[%emt 0:00:11]} Bb6 {[%emt 0:00:16]} 8. Bg5 {[%emt 0:00:21]} h6 {[%emt 0:00:06]} 9. Bh4 {[%emt 0:00:06]} Be6 {[%emt 0:00:07]} 10. Nbd2 {[%emt 0:00:22]} Qd7 {[%emt 0:00:58]} 11. a5 {[%emt 0:01:27]} Ba7 {[%emt 0:00:02]} 12. b5 {[%emt 0:00:29]} Ne7 {[%emt 0:00:31]} 13. bxa6 {[%emt 0:02:56]} bxa6 {[%emt 0:00:47]} 14. O-O {[%emt 0:00:12]} g5 {[%emt 0:01:39]} 15. Bg3 {[%emt 0:00:06]} h5 {[%emt 0:00:40]} 16. Bxe6 {[%emt 0:01:31]} fxe6 {[%emt 0:00:19]} 17. h4 {[%emt 0:02:00]} gxh4 {[%emt 0:00:03]} 18. Bxh4 {[%emt 0:00:16]} Ng4 {[%emt 0:00:05]} 19. d4 {[%emt 0:03:35]} Ng6 {[%emt 0:01:20]} 20. Bg3 {[%emt 0:00:33]} Qb5 {[%emt 0:01:31]} 21. Rb1 {[%emt 0:03:45]} Qc6 {[%emt 0:01:48]} 22. Qb3 {[%emt 0:00:26]} Kd7 {[%emt 0:01:08]} 23. d5 {[%emt 0:01:43]} Qc5 {[%emt 0:01:47]} 24. dxe6+ {[%emt 0:00:14]} Ke7 {[%emt 0:00:01]} 25. Nh4 {[%emt 0:00:08]} Rag8 {[%emt 0:00:28]} 26. Nf5+ {[%emt 0:00:08]} Kf6 {[%emt 0:00:03]} 27. Nf3 {[%emt 0:00:42]} h4 {[%emt 0:00:21]} 28. N3xh4 {[%emt 0:00:58]} Nxh4 {[%emt 0:00:01]} 29. Nxh4 {[%emt 0:00:04]} Rg5 {[%emt 0:01:13]} 30. Qd1 {[%emt 0:00:34]} Qxc3 {[%emt 0:00:30]} 31. Rb3 {[%emt 0:00:07]} Qc4 {[%emt 0:01:18]} 32. Qf3+ {[%emt 0:00:13]} Kxe6 {[%emt 0:00:03]} 33. Rc3 {[%emt 0:00:03]} Qd4 {[%emt 0:05:36]} 34. Rxc7 {[%emt 0:00:03]} Nf6 {[%emt 0:02:32]} 35. Nf5 {[%emt 0:00:34]} Qxe4 {[%emt 0:00:00]} 36. Re7+ {[%emt 0:00:32]} Kd5 {[%emt 0:00:00]} 37. Qb3+ {[%emt 0:00:10]} Qc4 {[%emt 0:00:00]} 38. Rd1+ {[%emt 0:00:09]} Bd4 {[%emt 0:00:00]} 39. Ne3+ {[%emt 0:00:04]} 1-0

[Event "Israel-ch Disabled 2024"]
[Site "Haifa"]
[Date "2024.05.23"]
[Round "2.3"]
[White "Streltsov, Alexey"]
[Black "Shevchuk, Evgeny"]
[Result "1-0"]
[ECO "D00"]
[WhiteElo "2292"]
[BlackElo "1924"]
[Annotator "RC"]
[PlyCount "51"]
[EventDate "2024.05.20"]
[EventType "swiss"]
[EventCountry "ISR"]
[SourceTitle "playchess.com"]
[Source "ChessBase"]
[SourceQuality "1"]
[TimeControl "1200+10"]

1. d4 {[%emt 0:00:06]} d5 {[%emt 0:00:02]} 2. Bf4 {[%emt 0:00:03]} Nf6 {[%emt 0:00:07]} 3. e3 {[%emt 0:00:04]} e6 {[%emt 0:00:25]} 4. Nc3 {[%emt 0:00:04]} a6 {[%emt 0:01:24]} 5. g4 {[%emt 0:00:10]} Bd6 {[%emt 0:00:51]} 6. g5 {[%emt 0:00:13]} Nfd7 {[%emt 0:02:45]} 7. Bxd6 {[%emt 0:00:48]} cxd6 {[%emt 0:00:02]} 8. Qg4 {[%emt 0:01:10]} Nc6 {[%emt 0:02:01]} 9. Qg3 {[%emt 0:01:14]} Qc7 {[%emt 0:01:44]} 10. O-O-O {[%emt 0:02:03]} b5 {[%emt 0:02:34]} 11. Kb1 {[%emt 0:00:03]} Bb7 {[%emt 0:00:11]} 12. h4 {[%emt 0:03:00]} Ne7 {[%emt 0:01:08]} 13. Bd3 {[%emt 0:13:22]} O-O-O {[%emt 0:01:19]} 14. a3 {[%emt 0:00:00]} Nb6 {[%emt 0:00:10]} 15. Nge2 {[%emt 0:00:00]} Nc4 {[%emt 0:01:01]} 16. h5 {[%emt 0:00:00]} e5 {[%emt 0:01:05]} 17. Bxc4 {[%emt 0:00:00]} dxc4 {[%emt 0:00:24]} 18. d5 {[%emt 0:00:00]} f5 {[%emt 0:01:56]} 19. gxf6 {[%emt 0:00:00]} gxf6 {[%emt 0:00:01]} 20. e4 {[%emt 0:00:00]} Rhg8 {[%emt 0:00:45]} 21. Qf3 {[%emt 0:00:00]} Qd7 {[%emt 0:00:24]} 22. Qxf6 {[%emt 0:00:00]} Rdf8 {[%emt 0:00:43]} 23. Qh6 {[%emt 0:00:00]} Rf7 {[%emt 0:01:02]} 24. f4 {[%emt 0:00:00]} Rfg7 {[%emt 0:00:53]} 25. f5 {[%emt 0:00:00]} Rf7 {[%emt 0:00:33]} 26. f6 {[%emt 0:00:00]} 1-0

[Event "Israel-ch Disabled 2024"]
[Site "Haifa"]
[Date "2024.05.23"]
[Round "2.4"]
[White "Aleksandrova, Aleksandra"]
[Black "Zilberman, Yaacov"]
[Result "0-1"]
[ECO "D00"]
[WhiteElo "1870"]
[BlackElo "2299"]
[Annotator "RC"]
[PlyCount "76"]
[EventDate "2024.05.20"]
[EventType "swiss"]
[EventCountry "ISR"]
[SourceTitle "playchess.com"]
[Source "ChessBase"]
[SourceQuality "1"]
[TimeControl "1200+10"]

1. d4 {[%emt 0:00:05]} Nf6 {[%emt 0:00:05]} 2. Nd2 {[%emt 0:00:02]} d5 {[%emt 0:00:12]} 3. e3 {[%emt 0:00:01]} e6 {[%emt 0:00:27]} 4. Bd3 {[%emt 0:00:06]} c5 {[%emt 0:00:05]} 5. c3 {[%emt 0:00:02]} Nc6 {[%emt 0:00:06]} 6. f4 {[%emt 0:00:04]} Qc7 {[%emt 0:00:30]} 7. g3 {[%emt 0:00:13]} Be7 {[%emt 0:00:08]} 8. Ngf3 {[%emt 0:00:10]} O-O {[%emt 0:00:44]} 9. Ne5 {[%emt 0:00:06]} b6 {[%emt 0:00:31]} 10. Qf3 {[%emt 0:00:11]} a5 {[%emt 0:00:20]} 11. a4 {[%emt 0:00:09]} Ba6 {[%emt 0:00:08]} 12. Bxa6 {[%emt 0:01:56]} Rxa6 {[%emt 0:00:03]} 13. g4 {[%emt 0:00:06]} Bd6 {[%emt 0:01:40]} 14. g5 {[%emt 0:02:09]} Nd7 {[%emt 0:00:04]} 15. Qg4 {[%emt 0:00:43]} Ne7 {[%emt 0:00:24]} 16. h4 {[%emt 0:00:40]} Nf5 {[%emt 0:00:20]} 17. Nf1 {[%emt 0:00:20]} f6 {[%emt 0:00:57]} 18. Qe2 {[%emt 0:01:30]} Ra7 {[%emt 0:01:06]} 19. e4 {[%emt 0:00:52]} dxe4 {[%emt 0:00:27]} 20. Nxd7 {[%emt 0:00:07]} Qxd7 {[%emt 0:00:05]} 21. Qxe4 {[%emt 0:00:03]} cxd4 {[%emt 0:00:17]} 22. cxd4 {[%emt 0:00:04]} Nxd4 {[%emt 0:01:37]} 23. Be3 {[%emt 0:00:56]} Nf5 {[%emt 0:00:57]} 24. Bxb6 {[%emt 0:00:34]} Bb4+ {[%emt 0:01:11]} 25. Kf2 {[%emt 0:00:52]} Rb7 {[%emt 0:00:19]} 26. Be3 {[%emt 0:00:51]} Nxe3 {[%emt 0:01:00]} 27. Nxe3 {[%emt 0:00:02]} Bc5 {[%emt 0:00:10]} 28. Rhd1 {[%emt 0:01:07]} Rxb2+ {[%emt 0:00:14]} 29. Kg3 {[%emt 0:00:23]} Qf7 {[%emt 0:00:35]} 30. Rab1 {[%emt 0:01:08]} Rxb1 {[%emt 0:00:07]} 31. Rxb1 {[%emt 0:00:04]} fxg5 {[%emt 0:00:13]} 32. hxg5 {[%emt 0:00:09]} Bd6 {[%emt 0:01:00]} 33. Ng2 {[%emt 0:00:19]} Qf5 {[%emt 0:01:10]} 34. Qxf5 {[%emt 0:00:16]} Rxf5 {[%emt 0:00:03]} 35. Rb6 {[%emt 0:00:20]} Rxg5+ {[%emt 0:00:07]} 36. Kf3 {[%emt 0:01:39]} Rd5 {[%emt 0:00:03]} 37. Ne3 {[%emt 0:00:02]} Rd3 {[%emt 0:00:03]} 38. Ke4 {[%emt 0:00:08]} Rxe3+ {[%emt 0:00:04]} 0-1